[Event "*** Titled Tuesday Blitz"]
[Site "Chess.com"]
[Date "2020.05.19"]
[Round "4"]
[White "2346PL"]
[Black "CakeinSpace2002"]
[Result "1-0"]
[WhiteElo "2415"]
[BlackElo "2211"]
[TimeControl "180+1"]
[EndTime "12:41:47 PDT"]
[Termination "2346PL won by resignation"]

1. d4 {[%clk 0:03:00.9]} 1... Nf6 {[%clk 0:02:58.1]} 2. Bg5 {[%clk 0:03:00.9]}
2... Ne4 {[%clk 0:02:57.4]} 3. Bf4 {[%clk 0:03:01.1]} 3... c5 {[%clk 0:02:56.7]}
4. dxc5 {[%clk 0:03:01.2]} 4... e6 {[%clk 0:02:55.1]} 5. Nd2 {[%clk 0:02:57.3]}
5... Nxc5 {[%clk 0:02:49.6]} 6. e4 {[%clk 0:02:57.1]} 6... Nc6 {[%clk
0:02:48.9]} 7. Ngf3 {[%clk 0:02:56.8]} 7... d6 {[%clk 0:02:48.7]} 8. Be2 {[%clk
0:02:54.2]} 8... Be7 {[%clk 0:02:48.2]} 9. O-O {[%clk 0:02:53.8]} 9... O-O
{[%clk 0:02:47.6]} 10. a3 {[%clk 0:02:50.8]} 10... b6 {[%clk 0:02:29.9]} 11. b4
{[%clk 0:02:48.5]} 11... Nd7 {[%clk 0:02:23.9]} 12. Nc4 {[%clk 0:02:45.7]} 12...
e5 {[%clk 0:02:08.2]} 13. Bc1 {[%clk 0:02:38.7]} 13... Nf6 {[%clk 0:02:05.9]}
14. Bb2 {[%clk 0:02:33.1]} 14... Bb7 {[%clk 0:01:57.6]} 15. Bd3 {[%clk
0:02:32.6]} 15... Rc8 {[%clk 0:01:45.6]} 16. Re1 {[%clk 0:02:32.2]} 16... Re8
{[%clk 0:01:42.2]} 17. Ne3 {[%clk 0:02:32.1]} 17... Bf8 {[%clk 0:01:41.9]} 18.
c4 {[%clk 0:02:21.2]} 18... Ne7 {[%clk 0:01:41.2]} 19. Nd5 {[%clk 0:01:51.5]}
19... Nexd5 {[%clk 0:01:20.1]} 20. cxd5 {[%clk 0:01:52.4]} 20... g6 {[%clk
0:01:15.1]} 21. Qd2 {[%clk 0:01:44.8]} 21... Nh5 {[%clk 0:01:13.3]} 22. g3
{[%clk 0:01:41.8]} 22... Qf6 {[%clk 0:01:08.3]} 23. Be2 {[%clk 0:01:40.8]} 23...
Rc7 {[%clk 0:01:04.2]} 24. h4 {[%clk 0:01:30.8]} 24... Rec8 {[%clk 0:01:02.8]}
25. Rac1 {[%clk 0:01:30.9]} 25... Qd8 {[%clk 0:00:52.6]} 26. Bf1 {[%clk
0:01:17.5]} 26... Nf6 {[%clk 0:00:48.4]} 27. Bd3 {[%clk 0:01:05]} 27... Bg7
{[%clk 0:00:44.1]} 28. a4 {[%clk 0:01:03.8]} 28... Nd7 {[%clk 0:00:35.7]} 29.
Kg2 {[%clk 0:01:03.6]} 29... Rxc1 {[%clk 0:00:34.5]} 30. Rxc1 {[%clk 0:01:03.3]}
30... a5 {[%clk 0:00:34.4]} 31. Ba3 {[%clk 0:01:00.6]} 31... axb4 {[%clk
0:00:33.1]} 32. Bxb4 {[%clk 0:01:00.4]} 32... Nc5 {[%clk 0:00:28.9]} 33. Bxc5
{[%clk 0:00:45.8]} 33... dxc5 {[%clk 0:00:24.1]} 34. Bb5 {[%clk 0:00:42]} 34...
Qd6 {[%clk 0:00:23.1]} 35. Qe2 {[%clk 0:00:35.9]} 35... f5 {[%clk 0:00:18.8]}
36. Bc4 {[%clk 0:00:31.9]} 36... h6 {[%clk 0:00:14.3]} 37. Kh2 {[%clk
0:00:31.1]} 37... Kh7 {[%clk 0:00:13.5]} 38. h5 {[%clk 0:00:30.3]} 38... Rf8
{[%clk 0:00:10]} 39. hxg6+ {[%clk 0:00:28.1]} 39... Qxg6 {[%clk 0:00:10.9]} 40.
Nh4 {[%clk 0:00:27.2]} 40... Qg5 {[%clk 0:00:10.9]} 41. Rb1 {[%clk 0:00:22.6]}
41... f4 {[%clk 0:00:10.2]} 42. Nf5 {[%clk 0:00:16.8]} 42... Rxf5 {[%clk
0:00:08.8]} 43. exf5 {[%clk 0:00:16.5]} 43... Bc8 {[%clk 0:00:09.4]} 44. Bd3
{[%clk 0:00:15]} 44... Bxf5 {[%clk 0:00:09.2]} 45. d6 {[%clk 0:00:08.9]} 45...
fxg3+ {[%clk 0:00:08]} 46. fxg3 {[%clk 0:00:08.8]} 46... Kg8 {[%clk 0:00:07.4]}
47. Bxf5 {[%clk 0:00:08.1]} 47... Qxf5 {[%clk 0:00:08.3]} 48. Rd1 {[%clk
0:00:06.9]} 48... e4 {[%clk 0:00:07.6]} 49. d7 {[%clk 0:00:06.4]} 49... Bd4
{[%clk 0:00:06.9]} 50. d8=Q+ {[%clk 0:00:05.2]} 1-0

[Event "*** Titled Tuesday Blitz"]
[Site "Chess.com"]
[Date "2020.05.19"]
[Round "4"]
[White "AndrewMaco"]
[Black "Too_Stupid_To_Play"]
[Result "0-1"]
[WhiteElo "2545"]
[BlackElo "2315"]
[TimeControl "180+1"]
[EndTime "12:41:48 PDT"]
[Termination "Too_Stupid_To_Play won by checkmate"]

1. e4 {[%clk 0:03:00.9]} 1... b6 {[%clk 0:02:59.5]} 2. d4 {[%clk 0:03:00.3]}
2... Bb7 {[%clk 0:03:00.4]} 3. Bd3 {[%clk 0:03:00.4]} 3... Nf6 {[%clk
0:03:01.2]} 4. Qe2 {[%clk 0:02:58.7]} 4... Nc6 {[%clk 0:03:01.3]} 5. c3 {[%clk
0:02:58.5]} 5... e5 {[%clk 0:03:01.8]} 6. Nf3 {[%clk 0:02:57.8]} 6... exd4
{[%clk 0:03:02.7]} 7. cxd4 {[%clk 0:02:58.7]} 7... Nb4 {[%clk 0:03:03.2]} 8. Nc3
{[%clk 0:02:41.4]} 8... Nxd3+ {[%clk 0:02:59.8]} 9. Qxd3 {[%clk 0:02:42.3]} 9...
Bb4 {[%clk 0:03:00.2]} 10. Nd2 {[%clk 0:02:25.5]} 10... Qe7 {[%clk 0:02:52.4]}
11. O-O {[%clk 0:02:21.1]} 11... O-O {[%clk 0:02:48.5]} 12. f3 {[%clk
0:02:17.2]} 12... a5 {[%clk 0:02:33.7]} 13. Re1 {[%clk 0:02:05.8]} 13... Ba6
{[%clk 0:02:32.1]} 14. Qe3 {[%clk 0:02:05.2]} 14... Rfe8 {[%clk 0:02:26.8]} 15.
Nf1 {[%clk 0:01:56.3]} 15... c5 {[%clk 0:01:40.8]} 16. d5 {[%clk 0:01:46.5]}
16... c4 {[%clk 0:01:06.4]} 17. Kh1 {[%clk 0:01:25.6]} 17... d6 {[%clk
0:00:59.9]} 18. Qf2 {[%clk 0:01:18.2]} 18... Bxc3 {[%clk 0:00:54.2]} 19. bxc3
{[%clk 0:01:19.1]} 19... Nxd5 {[%clk 0:00:54.1]} 20. Ng3 {[%clk 0:01:13.6]}
20... Nxc3 {[%clk 0:00:48.6]} 21. Bb2 {[%clk 0:01:05.9]} 21... Na4 {[%clk
0:00:47.8]} 22. Bxg7 {[%clk 0:01:04.7]} 22... Qg5 {[%clk 0:00:29.8]} 23. Bd4
{[%clk 0:00:55.7]} 23... Nc5 {[%clk 0:00:27.9]} 24. Red1 {[%clk 0:00:23.9]}
24... Nd3 {[%clk 0:00:23.9]} 25. Qc2 {[%clk 0:00:23.5]} 25... b5 {[%clk
0:00:19]} 26. Nf5 {[%clk 0:00:21.4]} 26... d5 {[%clk 0:00:13.9]} 27. Ng3 {[%clk
0:00:12.6]} 27... Rad8 {[%clk 0:00:03.8]} 28. Bb6 {[%clk 0:00:09.7]} 28... Rc8
{[%clk 0:00:02.2]} 29. Bxa5 {[%clk 0:00:09.8]} 29... b4 {[%clk 0:00:02.2]} 30.
exd5 {[%clk 0:00:06.3]} 30... Nf4 {[%clk 0:00:02.3]} 31. Bb6 {[%clk 0:00:05.6]}
31... c3 {[%clk 0:00:01.7]} 32. Bd4 {[%clk 0:00:05.4]} 32... Be2 {[%clk
0:00:02.1]} 33. Rg1 {[%clk 0:00:03.8]} 33... Bd3 {[%clk 0:00:02.6]} 34. Qc1
{[%clk 0:00:03.8]} 34... h5 {[%clk 0:00:01.6]} 35. Be3 {[%clk 0:00:03.2]} 35...
Rxe3 {[%clk 0:00:01.6]} 36. Qxe3 {[%clk 0:00:04.1]} 36... Kf8 {[%clk 0:00:01.8]}
37. Ne4 {[%clk 0:00:04]} 37... Bxe4 {[%clk 0:00:01.8]} 38. fxe4 {[%clk
0:00:04.7]} 38... Re8 {[%clk 0:00:02]} 39. g3 {[%clk 0:00:04.6]} 39... Ne6
{[%clk 0:00:02]} 40. Qxg5 {[%clk 0:00:04.2]} 40... Nxg5 {[%clk 0:00:02.9]} 41.
Rge1 {[%clk 0:00:04.9]} 41... Nf3 {[%clk 0:00:03.3]} 42. Re3 {[%clk 0:00:04.7]}
42... Nd2 {[%clk 0:00:03.4]} 43. Rc1 {[%clk 0:00:03.1]} 43... Nxe4 {[%clk
0:00:03.6]} 44. a3 {[%clk 0:00:03.1]} 44... b3 {[%clk 0:00:03.1]} 45. Kg2 {[%clk
0:00:02.4]} 45... b2 {[%clk 0:00:03.5]} 46. Rb1 {[%clk 0:00:02.8]} 46... Nd2
{[%clk 0:00:03.7]} 47. Ree1 {[%clk 0:00:01.3]} 47... Nxb1 {[%clk 0:00:03.8]} 48.
Rxb1 {[%clk 0:00:02.2]} 48... Re2+ {[%clk 0:00:04.3]} 49. Kf3 {[%clk 0:00:02.3]}
49... Rc2 {[%clk 0:00:04.9]} 50. d6 {[%clk 0:00:03.2]} 50... Rc1 {[%clk
0:00:05]} 51. d7 {[%clk 0:00:04.1]} 51... Ke7 {[%clk 0:00:05.1]} 52. d8=Q+
{[%clk 0:00:05]} 52... Kxd8 {[%clk 0:00:05.5]} 53. Rxc1 {[%clk 0:00:05.6]} 53...
bxc1=Q {[%clk 0:00:06.1]} 54. a4 {[%clk 0:00:06.5]} 54... Qa3 {[%clk 0:00:06.7]}
55. a5 {[%clk 0:00:07.4]} 55... c2+ {[%clk 0:00:07.1]} 56. Kf4 {[%clk
0:00:07.3]} 56... c1=Q+ {[%clk 0:00:08]} 57. Kf5 {[%clk 0:00:07.2]} 57... Qac5+
{[%clk 0:00:07.9]} 58. Kf6 {[%clk 0:00:08.1]} 58... Qh6+ {[%clk 0:00:08.2]} 59.
Kxf7 {[%clk 0:00:07.2]} 59... Qcf8# {[%clk 0:00:08.4]} 0-1

[Event "*** Titled Tuesday Blitz"]
[Site "Chess.com"]
[Date "2020.05.19"]
[Round "4"]
[White "Mirzaad786"]
[Black "TheFireChess"]
[Result "1-0"]
[WhiteElo "2264"]
[BlackElo "2422"]
[TimeControl "180+1"]
[EndTime "12:41:48 PDT"]
[Termination "Mirzaad786 won on time"]

1. d4 {[%clk 0:03:00.7]} 1... d6 {[%clk 0:02:58.2]} 2. Bf4 {[%clk 0:03:00.8]}
2... f5 {[%clk 0:02:58.3]} 3. c3 {[%clk 0:03:00.8]} 3... Nf6 {[%clk 0:02:58.6]}
4. Nf3 {[%clk 0:03:01.2]} 4... g6 {[%clk 0:02:58.9]} 5. e3 {[%clk 0:03:01.4]}
5... Bg7 {[%clk 0:02:59.3]} 6. Nbd2 {[%clk 0:03:01.8]} 6... c6 {[%clk
0:02:59.7]} 7. Bc4 {[%clk 0:03:01]} 7... b5 {[%clk 0:02:57.9]} 8. Bb3 {[%clk
0:03:00.8]} 8... a6 {[%clk 0:02:58.2]} 9. a4 {[%clk 0:03:00.6]} 9... bxa4 {[%clk
0:02:57.8]} 10. Rxa4 {[%clk 0:02:58.9]} 10... Ne4 {[%clk 0:02:52.9]} 11. Nxe4
{[%clk 0:02:54.1]} 11... fxe4 {[%clk 0:02:53.8]} 12. Nd2 {[%clk 0:02:35.5]}
12... d5 {[%clk 0:02:53.8]} 13. O-O {[%clk 0:02:33.6]} 13... Nd7 {[%clk
0:02:48.7]} 14. c4 {[%clk 0:02:29.7]} 14... e6 {[%clk 0:02:37.6]} 15. Qc2 {[%clk
0:02:20]} 15... O-O {[%clk 0:02:30.3]} 16. cxd5 {[%clk 0:02:12.5]} 16... cxd5
{[%clk 0:02:27.5]} 17. Rc1 {[%clk 0:02:05.4]} 17... g5 {[%clk 0:02:03.7]} 18.
Bd6 {[%clk 0:01:59.1]} 18... Re8 {[%clk 0:01:50.7]} 19. Qc6 {[%clk 0:01:49.3]}
19... Ra7 {[%clk 0:01:45.4]} 20. Ra3 {[%clk 0:01:22.8]} 20... Nf6 {[%clk
0:01:36.4]} 21. Bc7 {[%clk 0:01:02.9]} 21... Qe7 {[%clk 0:01:20.5]} 22. Bd6
{[%clk 0:01:01.2]} 22... Qd8 {[%clk 0:01:07.8]} 23. Ba4 {[%clk 0:00:59.1]} 23...
Bd7 {[%clk 0:00:58.6]} 24. Qc5 {[%clk 0:00:48.5]} 24... Ra8 {[%clk 0:00:33.7]}
25. Be5 {[%clk 0:00:45.1]} 25... Bxa4 {[%clk 0:00:32.8]} 26. Rxa4 {[%clk
0:00:43.2]} 26... Nd7 {[%clk 0:00:33]} 27. Qc7 {[%clk 0:00:34.9]} 27... Nxe5
{[%clk 0:00:32.2]} 28. dxe5 {[%clk 0:00:33.7]} 28... Rc8 {[%clk 0:00:32.4]} 29.
Qxc8 {[%clk 0:00:34]} 29... Qxc8 {[%clk 0:00:33.3]} 30. Rxc8 {[%clk 0:00:34.4]}
30... Rxc8 {[%clk 0:00:34.2]} 31. Rxa6 {[%clk 0:00:34.9]} 31... Rc1+ {[%clk
0:00:34.3]} 32. Nf1 {[%clk 0:00:32.8]} 32... Bxe5 {[%clk 0:00:34.7]} 33. Rxe6
{[%clk 0:00:32.8]} 33... Bxh2+ {[%clk 0:00:34.6]} 34. Kxh2 {[%clk 0:00:32.5]}
34... Rxf1 {[%clk 0:00:35.2]} 35. Kg3 {[%clk 0:00:32.6]} 35... Rb1 {[%clk
0:00:34.4]} 36. Re5 {[%clk 0:00:33]} 36... h6 {[%clk 0:00:31.9]} 37. Rxd5 {[%clk
0:00:33]} 37... Rxb2 {[%clk 0:00:32.5]} 38. Rd4 {[%clk 0:00:33]} 38... Kg7
{[%clk 0:00:31]} 39. Rxe4 {[%clk 0:00:33.2]} 39... Kg6 {[%clk 0:00:31]} 40. f4
{[%clk 0:00:32.6]} 40... gxf4+ {[%clk 0:00:30.1]} 41. exf4 {[%clk 0:00:32.8]}
41... Rb3+ {[%clk 0:00:30.4]} 42. Kh4 {[%clk 0:00:30.6]} 42... Rb6 {[%clk
0:00:29.4]} 43. g4 {[%clk 0:00:30.9]} 43... Ra6 {[%clk 0:00:27.5]} 44. f5+
{[%clk 0:00:31.1]} 44... Kg7 {[%clk 0:00:26]} 45. Re7+ {[%clk 0:00:30.5]} 45...
Kg8 {[%clk 0:00:25.9]} 46. Rb7 {[%clk 0:00:30.3]} 46... Rc6 {[%clk 0:00:24.9]}
47. Kh5 {[%clk 0:00:30.4]} 47... Ra6 {[%clk 0:00:21.2]} 48. Re7 {[%clk
0:00:30.4]} 48... Rb6 {[%clk 0:00:18.1]} 49. Re6 {[%clk 0:00:30.6]} 49... Rb1
{[%clk 0:00:04.8]} 50. Kxh6 {[%clk 0:00:30.7]} 50... Kf7 {[%clk 0:00:04.2]} 51.
Ra6 {[%clk 0:00:27.6]} 51... Rc1 {[%clk 0:00:02.9]} 52. Kg5 {[%clk 0:00:27.4]}
52... Rb1 {[%clk 0:00:02.7]} 53. Ra7+ {[%clk 0:00:27.1]} 53... Kf8 {[%clk
0:00:03]} 54. Kg6 {[%clk 0:00:26.9]} 1-0

[Event "*** Titled Tuesday Blitz"]
[Site "Chess.com"]
[Date "2020.05.19"]
[Round "4"]
[White "DarkAlekhine"]
[Black "OparinGrigoriy"]
[Result "1/2-1/2"]
[WhiteElo "2620"]
[BlackElo "2901"]
[TimeControl "180+1"]
[EndTime "12:41:49 PDT"]
[Termination "Game drawn by stalemate"]

1. Nf3 {[%clk 0:03:00.9]} 1... Nf6 {[%clk 0:02:58.9]} 2. g3 {[%clk 0:03:01]}
2... d5 {[%clk 0:02:59]} 3. Bg2 {[%clk 0:03:01.6]} 3... c5 {[%clk 0:02:59.6]} 4.
O-O {[%clk 0:03:02.1]} 4... g6 {[%clk 0:02:58.8]} 5. c4 {[%clk 0:02:59.5]} 5...
Bg7 {[%clk 0:02:55.3]} 6. cxd5 {[%clk 0:02:59.6]} 6... Nxd5 {[%clk 0:02:54.8]}
7. Nc3 {[%clk 0:03:00.5]} 7... O-O {[%clk 0:02:54.1]} 8. d3 {[%clk 0:02:56.1]}
8... Nxc3 {[%clk 0:02:49.7]} 9. bxc3 {[%clk 0:02:56]} 9... Nc6 {[%clk
0:02:50.2]} 10. Qc2 {[%clk 0:02:49.2]} 10... Bg4 {[%clk 0:02:48.6]} 11. Rb1
{[%clk 0:02:48.2]} 11... b6 {[%clk 0:02:46.5]} 12. h3 {[%clk 0:02:42.1]} 12...
Bd7 {[%clk 0:02:44.5]} 13. e4 {[%clk 0:02:35]} 13... Qc7 {[%clk 0:02:40.5]} 14.
Rd1 {[%clk 0:02:29.8]} 14... Rac8 {[%clk 0:02:39.5]} 15. Qe2 {[%clk 0:02:29.8]}
15... e5 {[%clk 0:02:20.8]} 16. Nd2 {[%clk 0:02:27.9]} 16... Be6 {[%clk
0:02:16.8]} 17. Nf1 {[%clk 0:02:26.9]} 17... c4 {[%clk 0:02:16.4]} 18. Ne3
{[%clk 0:02:12.7]} 18... cxd3 {[%clk 0:02:11.1]} 19. Rxd3 {[%clk 0:02:13.6]}
19... Rfd8 {[%clk 0:02:04.4]} 20. Nd5 {[%clk 0:02:13.3]} 20... Bxd5 {[%clk
0:02:03.9]} 21. exd5 {[%clk 0:02:14.2]} 21... Na5 {[%clk 0:02:02.6]} 22. Bg5
{[%clk 0:02:08]} 22... f6 {[%clk 0:02:00.3]} 23. Be3 {[%clk 0:02:05.5]} 23...
Nc4 {[%clk 0:01:59.8]} 24. Rbd1 {[%clk 0:02:02.4]} 24... Nxe3 {[%clk 0:01:53.2]}
25. Qxe3 {[%clk 0:02:00.4]} 25... Rd6 {[%clk 0:01:51.9]} 26. h4 {[%clk
0:02:00.6]} 26... f5 {[%clk 0:01:49.7]} 27. f3 {[%clk 0:01:22.6]} 27... Qc5
{[%clk 0:01:49.1]} 28. Qxc5 {[%clk 0:01:17.9]} 28... Rxc5 {[%clk 0:01:40.4]} 29.
g4 {[%clk 0:01:16]} 29... Kf7 {[%clk 0:01:38.6]} 30. Kf2 {[%clk 0:01:12]} 30...
h5 {[%clk 0:01:33.1]} 31. g5 {[%clk 0:01:01.9]} 31... Ke7 {[%clk 0:01:30.3]} 32.
R1d2 {[%clk 0:00:56.1]} 32... Kd7 {[%clk 0:01:25.1]} 33. Bf1 {[%clk 0:00:56.2]}
33... Ra5 {[%clk 0:01:22]} 34. Be2 {[%clk 0:00:55.9]} 34... Kc7 {[%clk
0:01:20.1]} 35. Bd1 {[%clk 0:00:56]} 35... Bf8 {[%clk 0:01:20.2]} 36. Bb3 {[%clk
0:00:55.7]} 36... Rd7 {[%clk 0:01:18.6]} 37. Kg2 {[%clk 0:00:46.7]} 37... Bd6
{[%clk 0:01:15.4]} 38. Re2 {[%clk 0:00:45.7]} 38... Re7 {[%clk 0:01:12.8]} 39.
Rd1 {[%clk 0:00:40.2]} 39... b5 {[%clk 0:01:10.8]} 40. Rc1 {[%clk 0:00:37.9]}
40... Kb6 {[%clk 0:01:10.6]} 41. Rd1 {[%clk 0:00:33]} 41... Kc5 {[%clk
0:01:10.5]} 42. Rc1 {[%clk 0:00:32.1]} 42... Ra3 {[%clk 0:01:10.5]} 43. Rb1
{[%clk 0:00:20.7]} 43... a5 {[%clk 0:01:07.6]} 44. Reb2 {[%clk 0:00:20.7]} 44...
Rb7 {[%clk 0:01:06.6]} 45. Kf2 {[%clk 0:00:16.6]} 45... Rb8 {[%clk 0:00:46.3]}
46. Kg2 {[%clk 0:00:15.7]} 46... a4 {[%clk 0:00:45.2]} 47. Bd1 {[%clk
0:00:15.4]} 47... Rxc3 {[%clk 0:00:45.6]} 48. Bxa4 {[%clk 0:00:13.6]} 48... bxa4
{[%clk 0:00:45.4]} 49. Rxb8 {[%clk 0:00:13.9]} 49... Bxb8 {[%clk 0:00:46.3]} 50.
Rxb8 {[%clk 0:00:13.6]} 50... Kxd5 {[%clk 0:00:38.3]} 51. Rg8 {[%clk 0:00:09.3]}
51... Rc6 {[%clk 0:00:38.5]} 52. Kf2 {[%clk 0:00:09.1]} 52... Kc4 {[%clk
0:00:36.8]} 53. Ke3 {[%clk 0:00:07.7]} 53... Kb4 {[%clk 0:00:36.2]} 54. Re8
{[%clk 0:00:07.8]} 54... Ka3 {[%clk 0:00:36.4]} 55. Rxe5 {[%clk 0:00:08]} 55...
Kxa2 {[%clk 0:00:37]} 56. Rb5 {[%clk 0:00:08.5]} 56... a3 {[%clk 0:00:33.7]} 57.
Kd4 {[%clk 0:00:08.7]} 57... Re6 {[%clk 0:00:31.8]} 58. Kd5 {[%clk 0:00:06.8]}
58... Ra6 {[%clk 0:00:24]} 59. Ke5 {[%clk 0:00:06.7]} 59... Ka1 {[%clk 0:00:24]}
60. Rb4 {[%clk 0:00:06.5]} 60... a2 {[%clk 0:00:23.9]} 61. f4 {[%clk 0:00:06.8]}
61... Rc6 {[%clk 0:00:22.6]} 62. Rb5 {[%clk 0:00:07]} 62... Rc2 {[%clk
0:00:20.4]} 63. Rb6 {[%clk 0:00:06.5]} 63... Rc3 {[%clk 0:00:15]} 64. Kf6 {[%clk
0:00:03.2]} 64... Rb3 {[%clk 0:00:04.9]} 65. Rxb3 {[%clk 0:00:02.8]} 1/2-1/2

[Event "*** Titled Tuesday Blitz"]
[Site "Chess.com"]
[Date "2020.05.19"]
[Round "4"]
[White "grunbergmihai"]
[Black "Bubi6"]
[Result "1-0"]
[WhiteElo "2412"]
[BlackElo "2593"]
[TimeControl "180+1"]
[EndTime "12:41:49 PDT"]
[Termination "grunbergmihai won on time"]

1. Nf3 {[%clk 0:03:00.9]} 1... Nf6 {[%clk 0:02:58.8]} 2. c4 {[%clk 0:03:00.7]}
2... e6 {[%clk 0:02:59.1]} 3. g3 {[%clk 0:03:01.1]} 3... a6 {[%clk 0:02:59.1]}
4. Bg2 {[%clk 0:03:02]} 4... b5 {[%clk 0:02:58.9]} 5. b3 {[%clk 0:03:00.8]} 5...
c5 {[%clk 0:02:58.6]} 6. O-O {[%clk 0:03:00]} 6... Bb7 {[%clk 0:02:58.2]} 7. Na3
{[%clk 0:02:55.8]} 7... Qb6 {[%clk 0:02:56.3]} 8. Bb2 {[%clk 0:02:51.4]} 8...
Be7 {[%clk 0:02:55]} 9. d4 {[%clk 0:02:50.9]} 9... O-O {[%clk 0:02:52.4]} 10.
Rc1 {[%clk 0:02:34.7]} 10... cxd4 {[%clk 0:02:35.1]} 11. Bxd4 {[%clk 0:02:31.9]}
11... Qd8 {[%clk 0:02:35.3]} 12. Nb1 {[%clk 0:02:23.7]} 12... Nc6 {[%clk
0:02:32.3]} 13. Bb2 {[%clk 0:02:22.1]} 13... bxc4 {[%clk 0:02:29.4]} 14. Rxc4
{[%clk 0:02:21.5]} 14... d5 {[%clk 0:02:29.1]} 15. Rc1 {[%clk 0:02:18.3]} 15...
Ne4 {[%clk 0:02:26.2]} 16. Nbd2 {[%clk 0:02:17.8]} 16... Nxd2 {[%clk 0:02:23.6]}
17. Qxd2 {[%clk 0:02:17.1]} 17... Rc8 {[%clk 0:02:09.2]} 18. Rfd1 {[%clk
0:02:16.7]} 18... Bf6 {[%clk 0:02:06.1]} 19. Nd4 {[%clk 0:02:12.5]} 19... Nxd4
{[%clk 0:02:00.7]} 20. Bxd4 {[%clk 0:02:12.3]} 20... Rxc1 {[%clk 0:01:35.7]} 21.
Rxc1 {[%clk 0:02:12.1]} 21... e5 {[%clk 0:01:31.1]} 22. Bb2 {[%clk 0:02:02.4]}
22... Qd7 {[%clk 0:01:25.4]} 23. Rd1 {[%clk 0:01:51.8]} 23... d4 {[%clk
0:01:23.3]} 24. Bxb7 {[%clk 0:01:43.2]} 24... Qxb7 {[%clk 0:01:24.2]} 25. e3
{[%clk 0:01:41.9]} 25... Rd8 {[%clk 0:01:17.4]} 26. Qe2 {[%clk 0:01:31.3]} 26...
h6 {[%clk 0:01:12.5]} 27. exd4 {[%clk 0:01:30]} 27... exd4 {[%clk 0:01:11.6]}
28. h4 {[%clk 0:01:25.5]} 28... a5 {[%clk 0:01:07.4]} 29. Rd3 {[%clk 0:01:20.9]}
29... Qd5 {[%clk 0:01:03.2]} 30. Qd1 {[%clk 0:01:03.9]} 30... Rd6 {[%clk
0:01:01.4]} 31. Kh2 {[%clk 0:01:01.8]} 31... h5 {[%clk 0:00:57.6]} 32. Qd2
{[%clk 0:00:59.9]} 32... g6 {[%clk 0:00:56.2]} 33. Qd1 {[%clk 0:00:59.4]} 33...
Kg7 {[%clk 0:00:56.1]} 34. Qd2 {[%clk 0:00:59.3]} 34... Qe4 {[%clk 0:00:54.4]}
35. Kg1 {[%clk 0:00:55.4]} 35... Rd5 {[%clk 0:00:49.3]} 36. Qd1 {[%clk 0:00:55]}
36... Kg8 {[%clk 0:00:45.6]} 37. Rd2 {[%clk 0:00:53.7]} 37... Qe6 {[%clk
0:00:44.7]} 38. Kg2 {[%clk 0:00:49.8]} 38... Qd6 {[%clk 0:00:35]} 39. Qf3 {[%clk
0:00:48.6]} 39... Bg7 {[%clk 0:00:32.3]} 40. Qd3 {[%clk 0:00:47.9]} 40... Qc6
{[%clk 0:00:28.3]} 41. Kg1 {[%clk 0:00:44.6]} 41... Qd7 {[%clk 0:00:28.2]} 42.
Qc4 {[%clk 0:00:44]} 42... Qd6 {[%clk 0:00:22]} 43. Qd3 {[%clk 0:00:43.6]} 43...
Qc6 {[%clk 0:00:21]} 44. Qc4 {[%clk 0:00:41.9]} 44... Rc5 {[%clk 0:00:20.4]} 45.
Qd3 {[%clk 0:00:38.9]} 45... Kh7 {[%clk 0:00:17.7]} 46. Qe2 {[%clk 0:00:31.4]}
46... Re5 {[%clk 0:00:14.8]} 47. Qd1 {[%clk 0:00:27.5]} 47... Qe6 {[%clk
0:00:11.8]} 48. Kg2 {[%clk 0:00:26.5]} 48... Re1 {[%clk 0:00:06.8]} 49. Qf3
{[%clk 0:00:25.8]} 49... Re4 {[%clk 0:00:04]} 50. a3 {[%clk 0:00:22.6]} 50...
Qe5 {[%clk 0:00:04.2]} 51. b4 {[%clk 0:00:21.9]} 51... a4 {[%clk 0:00:05.1]} 52.
Qd3 {[%clk 0:00:21.1]} 52... Qd5 {[%clk 0:00:04.9]} 53. Qf3 {[%clk 0:00:21.1]}
53... Re5 {[%clk 0:00:05]} 54. Qxd5 {[%clk 0:00:20.7]} 54... Rxd5 {[%clk
0:00:05.9]} 55. Rd3 {[%clk 0:00:21.5]} 55... f5 {[%clk 0:00:05.7]} 56. Kf3
{[%clk 0:00:21.5]} 56... Bf6 {[%clk 0:00:06]} 57. Ke2 {[%clk 0:00:21.1]} 57...
Kg7 {[%clk 0:00:06.4]} 58. b5 {[%clk 0:00:18.3]} 58... Kf7 {[%clk 0:00:03.8]}
59. b6 {[%clk 0:00:18.1]} 59... Rb5 {[%clk 0:00:03.3]} 60. Bxd4 {[%clk 0:00:18]}
60... Bxd4 {[%clk 0:00:01.2]} 61. Rxd4 {[%clk 0:00:18.1]} 61... Rb2+ {[%clk
0:00:02.1]} 62. Kf3 {[%clk 0:00:18]} 62... Rb3+ {[%clk 0:00:02]} 63. Kf4 {[%clk
0:00:17.7]} 1-0